bitfinex/quotes_BTCUSD_20251113
["timestamp","ask_amount","ask_price","bid_price","bid_amount"]
[1763015893007,0.13089,103490.0,103480.0,0.26472348]
[1763015893431,0.32414538,103490.0,103480.0,0.26472348]
[1763015893666,0.32414538,103490.0,103480.0,0.05144942]
[1763015894068,0.32414538,103490.0,103480.0,0.24472348]
[1763015895311,0.37414538,103490.0,103480.0,0.24472348]
[1763015895529,0.37414538,103490.0,103480.0,0.05144942]
[1763015895738,0.37414538,103490.0,103480.0,0.24472348]
[1763015896199,0.18089,103490.0,103480.0,0.24472348]
[1763015897253,0.11225,103490.0,103480.0,0.51713512]
[1763015897457,0.09268,103490.0,103480.0,0.86013512]
[1763015897696,0.04268,103490.0,103480.0,0.86013512]
[1763015897901,0.04268,103490.0,103480.0,0.84013512]
[1763015898084,0.00186252,103500.0,103490.0,0.23667412]
[1763015898332,0.00186252,103500.0,103490.0,0.88353518]
[1763015899164,0.00386252,103500.0,103490.0,0.88353518]
[1763015901980,0.07250252,103500.0,103490.0,0.5677048]
[1763015902189,0.03038252,103500.0,103490.0,0.84011644]
[1763015902421,0.00386252,103500.0,103490.0,0.84011644]
[1763015902820,0.03038252,103500.0,103490.0,0.84011644]
[1763015904715,0.03038252,103500.0,103490.0,0.78866702]
[1763015904854,0.04654252,103500.0,103490.0,0.78866702]
[1763015905505,0.04654252,103500.0,103490.0,0.85726261]
[1763015905966,0.04554252,103500.0,103490.0,0.85726261]
[1763015906226,0.04554252,103500.0,103490.0,0.78866702]
[1763015906426,0.00186252,103500.0,103490.0,0.78866702]
[1763015907189,0.00186252,103500.0,103490.0,0.85208576]
[1763015908202,0.00186252,103500.0,103490.0,0.92068135]
[1763015908427,0.00186252,103500.0,103490.0,0.93923808]
[1763015908631,0.00186252,103500.0,103490.0,0.91923808]
[1763015908834,0.00186252,103500.0,103490.0,0.85064249]
[1763015911687,0.00186252,103500.0,103490.0,0.93923808]
[1763015912074,0.00186252,103500.0,103490.0,0.87064249]
[1763015912735,0.00186252,103500.0,103490.0,0.85064249]
[1763015912943,0.00186252,103500.0,103490.0,0.89423939]
[1763015914577,0.00186252,103500.0,103490.0,1.33674793]
[1763015914782,0.00186252,103500.0,103490.0,1.48847999]
[1763015914981,0.00186252,103500.0,103490.0,1.45435252]
[1763015915924,0.00386252,103500.0,103490.0,1.45435252]
[1763015920941,0.00386252,103500.0,103490.0,0.86233544]
[1763015921146,0.00386252,103500.0,103490.0,1.45435252]
[1763015926771,0.00386252,103500.0,103490.0,0.86233544]
[1763015926989,0.00386252,103500.0,103490.0,1.45435252]
[1763015927544,0.00386252,103500.0,103490.0,1.09492524]
[1763015927983,0.00386252,103500.0,103490.0,0.74291624]
[1763015928196,0.00386252,103500.0,103490.0,1.10933498]
[1763015928619,0.00386252,103500.0,103490.0,1.04073939]
[1763015928865,0.00286252,103500.0,103490.0,1.04073939]
[1763015929253,0.00286252,103500.0,103490.0,1.10933498]
[1763015929690,0.00286252,103500.0,103490.0,1.04073939]
[1763015929691,0.00186252,103500.0,103490.0,1.04073939]
[1763015930078,0.00186252,103500.0,103490.0,0.83226392]
[1763015930213,0.00186252,103500.0,103490.0,0.87568266]
[1763015931410,0.00186252,103500.0,103490.0,0.57967412]
[1763015931618,0.00186252,103500.0,103490.0,0.87568266]
[1763015932233,0.00186252,103500.0,103490.0,0.57967412]
[1763015932437,0.00186252,103500.0,103490.0,0.87568266]
[1763015932612,0.00186252,103500.0,103490.0,0.96427825]
[1763015932801,0.00186252,103500.0,103490.0,0.98189872]
[1763015935228,0.00186252,103500.0,103490.0,1.27790726]
[1763015935443,0.00186252,103500.0,103490.0,0.98189872]
[1763015936625,0.00186252,103500.0,103490.0,0.96189872]
[1763015937985,0.00186252,103500.0,103490.0,1.25790726]
[1763015938153,0.00186252,103500.0,103490.0,1.31045826]
[1763015938396,0.00186252,103500.0,103490.0,1.27790726]
[1763015938576,0.00186252,103500.0,103490.0,1.20931167]
[1763015938977,0.00186252,103500.0,103490.0,0.96218478]
[1763015941285,0.19509923,103500.0,103490.0,0.96218478]
[1763015941536,0.25953923,103500.0,103480.0,0.28214718]
[1763015941715,0.27710538,103490.0,103480.0,0.28214718]
[1763015941925,0.08385,103490.0,103480.0,0.57815572]
[1763015942375,0.08385,103490.0,103480.0,0.90115572]
[1763015942580,0.27710538,103490.0,103480.0,0.60514718]
[1763015942783,0.08385,103490.0,103480.0,0.90115572]
[1763015942997,0.08282252,103500.0,103490.0,0.19325538]
[1763015943186,0.23777923,103500.0,103490.0,0.50926392]
[1763015943364,0.26393923,103500.0,103490.0,0.50926392]
[1763015943739,0.30221923,103500.0,103490.0,0.02]
[1763015943924,0.30221923,103500.0,103490.0,0.21325538]
[1763015944155,0.30321923,103500.0,103490.0,0.21325538]
[1763015944369,0.10998252,103500.0,103490.0,0.21325538]
[1763015944578,0.07270252,103500.0,103490.0,0.50926392]
[1763015944910,0.07270252,103500.0,103490.0,0.21325538]
[1763015945559,0.30455923,103500.0,103490.0,0.21325538]
[1763015945918,0.30455923,103500.0,103490.0,0.02]
[1763015946126,0.30455923,103500.0,103490.0,0.21325538]
[1763015946325,0.30455923,103500.0,103490.0,0.02]
[1763015946522,0.11132252,103500.0,103490.0,0.21325538]
[1763015946757,0.30455923,103500.0,103490.0,0.02]
[1763015947709,0.35455923,103500.0,103490.0,0.02]
[1763015949089,0.35455923,103500.0,103490.0,0.07166177]
[1763015949295,0.35455923,103500.0,103490.0,0.02]
[1763015949507,0.77749099,103500.0,103490.0,0.05165722]
[1763015949714,0.19325538,103490.0,103480.0,0.05165722]
[1763015949922,0.27407538,103490.0,103480.0,0.05165722]
[1763015950125,0.69700714,103490.0,103480.0,0.05165722]
[1763015950330,0.19327406,103480.0,103470.0,0.05174744]
[1763015950544,0.29874406,103480.0,103470.0,0.05174744]
[1763015952320,0.05186252,103500.0,103490.0,0.19325538]
[1763015952545,0.00186252,103500.0,103490.0,0.99260588]
[1763015952772,0.00186252,103500.0,103490.0,1.01888891]
[1763015953208,0.00186252,103500.0,103490.0,1.06047929]
[1763015953845,0.00186252,103500.0,103490.0,1.06147929]
[1763015954060,0.00186252,103500.0,103490.0,1.01988891]
[1763015954721,0.04478252,103500.0,103490.0,1.01988891]
[1763015955574,0.04478252,103500.0,103490.0,1.02088891]
[1763015956002,0.04478252,103500.0,103490.0,0.58795715]
[1763015956212,0.04478252,103500.0,103490.0,1.06250243]
[1763015957080,0.06895252,103500.0,103490.0,1.06250243]
[1763015957288,0.10757252,103500.0,103490.0,1.01908369]
[1763015957717,0.10757252,103500.0,103490.0,0.59615193]
[1763015958332,0.10757252,103500.0,103490.0,0.5798689]
[1763015958968,0.10757252,103500.0,103490.0,0.2568689]
[1763015959229,0.10757252,103500.0,103490.0,0.2468689]
[1763015959230,0.30080923,103500.0,103490.0,0.2468689]
[1763015959451,0.30080923,103500.0,103490.0,0.002]
[1763015959886,0.30080923,103500.0,103490.0,0.001]
[1763015960064,0.30080923,103500.0,103480.0,0.24488758]
[1763015960424,0.06279,103490.0,103480.0,0.24488758]
[1763015962158,0.06279,103490.0,103480.0,0.24588758]
[1763015962571,0.06279,103490.0,103480.0,0.24688758]
[1763015964096,0.25604538,103490.0,103480.0,0.24688758]
[1763015964322,0.25604538,103490.0,103480.0,0.05361352]
[1763015964556,0.25604538,103490.0,103480.0,0.002]
[1763015964778,0.06279,103490.0,103480.0,0.19527406]
[1763015964996,0.25604538,103490.0,103480.0,0.19527406]
[1763015965216,0.25604538,103490.0,103480.0,0.19427406]
[1763015965422,0.25604538,103490.0,103470.0,0.67759287]
[1763015965632,0.23187538,103490.0,103480.0,0.19327406]
[1763015965848,0.27471538,103490.0,103480.0,0.19327406]
[1763015966070,0.29888538,103490.0,103470.0,0.25466111]
[1763015966308,0.27471538,103490.0,103480.0,0.19327406]
[1763015966536,0.23609538,103490.0,103480.0,0.19327406]
[1763015966749,0.26026538,103490.0,103480.0,0.19327406]
[1763015967074,0.26026538,103490.0,103470.0,0.67759287]
[1763015967161,0.06279,103490.0,103480.0,0.61620582]
[1763015967396,0.27467538,103490.0,103480.0,0.43293176]
[1763015967615,0.29384538,103490.0,103480.0,0.20327406]
[1763015968250,0.10559,103490.0,103480.0,0.20327406]
[1763015968699,0.29884538,103490.0,103480.0,0.20327406]
[1763015968914,0.10559,103490.0,103480.0,0.20327406]
[1763015969370,0.29884538,103490.0,103480.0,0.20327406]
[1763015969793,0.10559,103490.0,103480.0,0.20327406]
[1763015970019,0.06279,103490.0,103480.0,0.20327406]
[1763015970232,0.10559,103490.0,103480.0,0.62620582]
[1763015970620,0.06279,103490.0,103480.0,0.20327406]
[1763015970868,0.0428,103490.0,103480.0,0.67781934]
[1763015971101,0.10228,103490.0,103480.0,0.67781934]
[1763015973051,0.29553538,103490.0,103480.0,0.50724108]
[1763015973734,0.10228,103490.0,103480.0,0.50724108]
[1763015974165,0.05948,103490.0,103480.0,0.50724108]
[1763015974279,0.10224,103490.0,103480.0,0.50724108]
[1763015974899,0.29549538,103490.0,103480.0,0.50724108]
[1763015975110,0.19509926,103500.0,103490.0,0.19325538]
[1763015975111,0.00186252,103500.0,103490.0,0.19325538]
[1763015975301,0.06888252,103500.0,103490.0,0.45560888]
[1763015975501,0.10410252,103500.0,103490.0,0.2623535]
[1763015975713,0.10410252,103500.0,103490.0,0.45560888]
[1763015975912,0.10410252,103500.0,103490.0,0.20325538]
[1763015976120,0.29733923,103500.0,103490.0,0.45560888]
[1763015976320,0.10410252,103500.0,103490.0,0.45560888]
[1763015976523,0.29733923,103500.0,103490.0,0.45560888]
[1763015976726,0.29833923,103500.0,103490.0,0.45560888]
[1763015976924,0.29833923,103500.0,103490.0,0.2623535]
[1763015977132,0.29833923,103500.0,103490.0,0.45560888]
[1763015977573,0.10510252,103500.0,103490.0,0.45560888]
[1763015977794,0.29833923,103500.0,103490.0,0.45560888]
[1763015978007,0.29833923,103500.0,103490.0,0.2623535]
[1763015978226,0.19325538,103490.0,103480.0,0.49724108]
[1763015978503,0.25273538,103490.0,103480.0,0.57788758]
[1763015978711,0.25273538,103490.0,103480.0,0.83024108]
[1763015979573,0.05948,103490.0,103480.0,0.57788758]
[1763015979802,0.05948,103490.0,103480.0,0.83024108]
[1763015980727,0.02426,103490.0,103480.0,0.83024108]
[1763015980964,0.21751538,103490.0,103480.0,0.83024108]
[1763015981250,0.02426,103490.0,103480.0,0.83024108]
[1763015981461,0.02426,103490.0,103480.0,0.77862756]
[1763015981628,0.07984252,103500.0,103490.0,0.19325538]
[1763015981834,0.10410252,103500.0,103490.0,0.4974067]
[1763015982890,0.10406252,103500.0,103490.0,0.4974067]
[1763015983116,0.06234252,103500.0,103490.0,0.4974067]
[1763015983335,0.00286252,103500.0,103490.0,0.5074067]
[1763015983543,0.04558252,103500.0,103490.0,0.5074067]
[1763015984646,0.23881923,103500.0,103490.0,0.5074067]
[1763015984857,0.26307923,103500.0,103490.0,0.5074067]
[1763015985068,0.06984252,103500.0,103490.0,0.5074067]
[1763015986184,0.25557923,103500.0,103490.0,0.5074067]
[1763015986390,0.29825923,103500.0,103490.0,0.2550532]
[1763015986614,0.29825923,103500.0,103490.0,0.5074067]
[1763015986824,0.29825923,103500.0,103490.0,0.05179782]
[1763015987241,0.29825923,103500.0,103490.0,0.2450532]
[1763015987682,0.29825923,103500.0,103490.0,0.05179782]
[1763015988119,0.29825923,103500.0,103490.0,0.2450532]
[1763015988335,0.29825923,103500.0,103490.0,0.46712838]
[1763015988793,0.29825923,103500.0,103490.0,0.05179782]
[1763015989241,0.74240959,103500.0,103490.0,0.05179782]
[1763015989454,0.19325538,103490.0,103480.0,0.05179782]
[1763015989674,0.25273538,103490.0,103480.0,0.05179782]
[1763015990127,0.25273538,103490.0,103480.0,0.46714706]
[1763015990316,0.25273538,103490.0,103480.0,0.41534924]
[1763015990959,0.25273538,103490.0,103480.0,0.19327406]
[1763015991195,0.19327406,103480.0,103470.0,0.06897187]
[1763015991421,0.05948,103480.0,103470.0,0.19338296]
[1763015991640,0.05948,103480.0,103470.0,0.51464587]
[1763015991874,0.05948,103480.0,103470.0,0.26226461]
[1763015992298,0.04268,103480.0,103470.0,0.52464587]
[1763015992931,0.06694,103480.0,103470.0,0.52464587]
[1763015993142,0.02426,103480.0,103470.0,0.52464587]
[1763015993370,0.29543406,103480.0,103470.0,0.52464587]
[1763015993587,0.10216,103480.0,103470.0,0.52464587]
[1763015994290,0.04268,103480.0,103470.0,0.52464587]
[1763015994482,0.21753406,103480.0,103470.0,0.52464587]
[1763015994726,0.29543406,103480.0,103470.0,0.52464587]
[1763015994929,0.06694,103480.0,103470.0,0.52464587]
[1763015995133,0.26021406,103480.0,103470.0,0.52464587]
[1763015995340,0.29543406,103480.0,103470.0,0.52464587]
[1763015995979,0.29543406,103480.0,103470.0,0.51464587]
[1763015996171,0.29543406,103480.0,103470.0,0.32135313]
[1763015996422,0.29543406,103480.0,103470.0,0.06897187]
[1763015996636,0.54781532,103480.0,103470.0,9.022e-05]
[1763015996843,0.29543406,103480.0,103470.0,9.022e-05]
[1763016001054,0.25942406,103480.0,103470.0,0.45576422]
[1763016001265,0.29639406,103480.0,103470.0,0.45576422]
[1763016001476,0.06615,103480.0,103470.0,0.52464587]
[1763016001689,0.29639406,103480.0,103470.0,0.07897187]
[1763016002163,0.10312,103480.0,103470.0,0.52464587]
[1763016002569,0.29639406,103480.0,103470.0,0.45576422]
[1763016002789,0.29639406,103480.0,103470.0,9.022e-05]
[1763016005053,0.06044,103480.0,103470.0,9.022e-05]
[1763016005286,0.06615,103480.0,103470.0,0.45576422]
[1763016005497,0.25942406,103480.0,103470.0,0.45576422]
[1763016005681,0.29437406,103480.0,103470.0,0.45576422]
[1763016006044,0.1011,103480.0,103470.0,0.45576422]
[1763016006269,0.02347,103480.0,103470.0,0.45576422]
[1763016006475,0.03495,103490.0,103480.0,0.19326647]
[1763016006698,0.10001,103490.0,103480.0,0.19326647]
[1763016006898,0.29326538,103490.0,103480.0,0.19326647]
[1763016007172,0.03681252,103500.0,103480.0,0.70802899]
[1763016007369,0.23005058,103500.0,103490.0,0.44563664]
[1763016007577,0.00186252,103500.0,103490.0,0.45563664]
[1763016007777,0.29510923,103500.0,103490.0,0.26238126]
[1763016007997,0.29510923,103500.0,103490.0,0.01]
[1763016008202,0.29510923,103500.0,103480.0,0.45564773]
[1763016008423,0.02238,103490.0,103480.0,0.49906647]
[1763016008623,0.02238,103490.0,103480.0,0.45564773]
[1763016008821,0.27372923,103500.0,103490.0,0.19325538]
[1763016009243,0.29610923,103500.0,103490.0,0.19325538]
[1763016009444,0.25342923,103500.0,103490.0,0.19325538]
[1763016009675,0.29610923,103500.0,103490.0,0.19325538]
[1763016009819,0.25242923,103500.0,103490.0,0.19325538]
[1763016010223,0.00286252,103500.0,103490.0,0.44563664]
[1763016010420,0.23877923,103500.0,103490.0,0.20325538]
[1763016010638,0.10187252,103500.0,103490.0,0.45563664]
[1763016011031,0.10287252,103500.0,103490.0,0.45563664]
[1763016011294,0.10287252,103500.0,103490.0,0.20325538]
[1763016011792,0.26115923,103500.0,103490.0,0.20325538]
[1763016012004,0.19325538,103490.0,103480.0,0.07888165]
[1763016012222,0.25058538,103490.0,103480.0,0.20327406]
[1763016012441,0.05733,103490.0,103480.0,0.20327406]
[1763016012640,0.02238,103490.0,103480.0,0.45565532]
[1763016012888,0.23104923,103500.0,103490.0,0.19325538]
[1763016013100,0.27272923,103500.0,103490.0,0.20325538]
[1763016013345,0.29510923,103500.0,103490.0,0.20325538]
[1763016013690,0.10187252,103500.0,103490.0,0.20325538]
[1763016014104,0.02524252,103500.0,103490.0,0.45563664]
[1763016014432,0.23877923,103500.0,103490.0,0.44563664]
[1763016014664,0.04554252,103500.0,103490.0,0.45563664]
[1763016015041,0.00286252,103500.0,103490.0,0.45563664]
[1763016015364,0.04554252,103500.0,103490.0,0.45563664]
[1763016015588,0.23877923,103500.0,103490.0,0.45563664]
[1763016015825,0.04554252,103500.0,103490.0,0.45563664]
[1763016015991,0.23777923,103500.0,103490.0,0.45563664]
[1763016016191,0.04454252,103500.0,103490.0,0.45563664]
[1763016017767,0.00186252,103500.0,103490.0,0.48905538]
[1763016018014,0.04454252,103500.0,103490.0,0.55636265]
[1763016018844,0.04454252,103500.0,103490.0,0.30398139]
[1763016019054,0.04454252,103500.0,103490.0,0.96995199]
[1763016019901,0.04454252,103500.0,103490.0,0.69454305]
[1763016020106,0.04454252,103500.0,103490.0,0.22155]
[1763016020311,0.04454252,103500.0,103490.0,0.6655304]
[1763016022711,0.29510923,103500.0,103490.0,0.6655304]
[1763016022940,0.29510923,103500.0,103490.0,0.4435402]
[1763016023184,0.10187252,103500.0,103490.0,0.4435402]
[1763016024313,0.10187252,103500.0,103490.0,0.22155]
[1763016024529,0.10187252,103500.0,103490.0,0.4435402]
[1763016024891,0.29510923,103500.0,103490.0,0.4435402]
[1763016025104,0.10187252,103500.0,103490.0,0.4435402]
[1763016025333,0.29510923,103500.0,103490.0,0.01829462]
[1763016025557,0.29510923,103500.0,103490.0,0.02829462]
[1763016025774,0.51709943,103500.0,103490.0,0.22155]
[1763016025983,0.29510923,103500.0,103490.0,0.22155]
[1763016026941,0.29510923,103500.0,103490.0,0.02829462]
[1763016027749,0.51709943,103500.0,103490.0,0.01]
[1763016027952,0.19325538,103490.0,103480.0,0.42526426]
[1763016028184,0.05733,103490.0,103480.0,0.42526426]
[1763016028804,0.05733,103490.0,103480.0,0.64725446]
[1763016030377,0.02238,103490.0,103480.0,0.71613611]
[1763016031490,0.03533252,103500.0,103490.0,0.20325538]
[1763016031696,0.07801252,103500.0,103490.0,0.64723578]
[1763016031921,0.09977252,103500.0,103490.0,0.42524558]
[1763016032149,0.29300923,103500.0,103490.0,0.42524558]
[1763016032399,0.09977252,103500.0,103490.0,0.42524558]
[1763016032635,0.10077252,103500.0,103490.0,0.42524558]
[1763016032862,0.29400923,103500.0,103490.0,0.42524558]
[1763016033095,0.10077252,103500.0,103490.0,0.20325538]
[1763016033306,0.10077252,103500.0,103490.0,0.42524558]
[1763016033763,0.02462252,103500.0,103490.0,0.42524558]
[1763016033984,0.06730252,103500.0,103490.0,0.64723578]
[1763016034947,0.06730252,103500.0,103490.0,0.49928003]
[1763016036378,0.29400923,103500.0,103490.0,0.49928003]
[1763016036549,0.08501252,103500.0,103490.0,0.49928003]
[1763016037555,0.11848252,103500.0,103490.0,0.49928003]
[1763016037758,0.11848252,103500.0,103490.0,0.20325538]
[1763016037956,0.31171923,103500.0,103490.0,0.20325538]
[1763016038174,0.31171923,103500.0,103490.0,0.19325538]
[1763016039223,0.31171923,103500.0,103480.0,0.62884451]
[1763016039478,0.01771,103490.0,103480.0,0.62884451]
[1763016039862,0.03947,103490.0,103480.0,0.58542577]
[1763016040036,0.07294,103490.0,103480.0,0.58542577]
[1763016041066,0.07294,103490.0,103480.0,0.28940112]
[1763016041868,0.26619538,103490.0,103480.0,0.28940112]
[1763016042581,0.07294,103490.0,103480.0,0.51654412]
[1763016043328,0.03947,103490.0,103480.0,0.51654412]
[1763016044149,0.03947,103490.0,103480.0,0.22051947]
[1763016044356,0.26619538,103490.0,103480.0,0.19327406]
[1763016044767,0.26619538,103490.0,103470.0,0.28192924]
[1763016044953,0.30889406,103480.0,103470.0,0.06897187]
[1763016045089,0.30889406,103480.0,103470.0,0.26226461]
[1763016046164,0.11562,103480.0,103470.0,0.26226461]
[1763016046370,0.30889406,103480.0,103470.0,0.19338296]
[1763016046925,0.30889406,103480.0,103470.0,9.022e-05]
[1763016047412,0.30889406,103480.0,103470.0,0.19338296]
[1763016047825,0.11562,103480.0,103470.0,0.19338296]
[1763016048028,0.30889406,103480.0,103470.0,0.19338296]
[1763016048866,0.30889406,103480.0,103470.0,9.022e-05]
[1763016049083,0.11562,103480.0,103470.0,0.19338296]
[1763016050131,0.11562,103480.0,103470.0,0.48940761]
[1763016053120,0.01771,103490.0,103480.0,0.19327406]
[1763016053337,0.05304252,103500.0,103490.0,0.21325538]
[1763016053667,0.11748252,103500.0,103490.0,0.50928003]
[1763016055632,0.01957252,103500.0,103490.0,0.50928003]
[1763016055957,0.06225252,103500.0,103490.0,0.50928003]
[1763016056160,0.08401252,103500.0,103490.0,0.50928003]
[1763016056357,0.08501252,103500.0,103490.0,0.50928003]
[1763016057347,0.11848252,103500.0,103490.0,0.50928003]
[1763016057797,0.08501252,103500.0,103490.0,0.50928003]
[1763016058122,0.04554252,103500.0,103490.0,1.19913258]
[1763016058332,0.00286252,103500.0,103490.0,1.19913258]
[1763016058544,0.00286252,103500.0,103490.0,1.36109915]
[1763016058957,0.00286252,103500.0,103490.0,1.29702778]
[1763016059520,0.00186252,103500.0,103490.0,1.29702778]
[1763016060294,0.00186252,103500.0,103490.0,0.70497848]
[1763016060499,0.00186252,103500.0,103490.0,0.99100313]
[1763016061082,0.00186252,103500.0,103490.0,1.28702778]
[1763016061649,0.00186252,103500.0,103490.0,0.99100313]
[1763016064099,0.00186252,103500.0,103490.0,0.69497848]
[1763016064318,0.00186252,103500.0,103490.0,0.92212148]
[1763016065149,0.00186252,103500.0,103490.0,0.62609683]
[1763016065348,0.00186252,103500.0,103490.0,0.92212148]
[1763016065559,0.00186252,103500.0,103490.0,1.22814613]
[1763016065769,0.00186252,103500.0,103490.0,1.29702778]
[1763016068087,0.00186252,103500.0,103490.0,1.44352778]
[1763016068553,0.00186252,103500.0,103490.0,1.4773221]
[1763016068736,0.00186252,103500.0,103490.0,1.44352778]
[1763016071127,0.00186252,103500.0,103490.0,1.4773221]
[1763016071340,0.00186252,103500.0,103490.0,1.44352778]
[1763016073092,0.00186252,103500.0,103490.0,1.51731147]
[1763016079659,0.00186252,103500.0,103490.0,1.61911147]
[1763016079884,0.00186252,103500.0,103490.0,1.51731147]
[1763016083222,0.00186252,103500.0,103490.0,1.40010904]
[1763016083424,0.04134252,103500.0,103490.0,0.31855974]
[1763016083630,0.07282252,103500.0,103490.0,0.24967809]
[1763016083855,0.07282252,103500.0,103490.0,0.54570274]
[1763016084082,0.07282252,103500.0,103490.0,0.93758439]
[1763016084258,0.07282252,103500.0,103490.0,0.65800313]
[1763016084473,0.07282252,103500.0,103490.0,0.61558439]
[1763016084879,0.07282252,103500.0,103490.0,0.61658439]
[1763016085262,0.07282252,103500.0,103490.0,0.66000313]
[1763016086641,0.07282252,103500.0,103490.0,0.67604799]
[1763016090796,0.26605923,103500.0,103490.0,0.3366046]
[1763016090992,0.07282252,103500.0,103490.0,0.30759105]
[1763016091723,0.26605923,103500.0,103490.0,0.30759105]
[1763016092793,0.07282252,103500.0,103490.0,0.30759105]
[1763016092934,0.26605923,103500.0,103490.0,0.29018189]
[1763016093136,0.30865923,103500.0,103490.0,0.07132468]
[1763016093558,0.30865923,103500.0,103490.0,0.26458006]
[1763016094640,0.30865923,103500.0,103490.0,0.07132468]
[1763016094782,0.30865923,103500.0,103490.0,0.26458006]
[1763016095395,0.30865923,103500.0,103490.0,0.07132468]
[1763016096306,0.00186252,103500.0,103490.0,0.57060471]
[1763016096529,0.04446252,103500.0,103490.0,0.57060471]
[1763016096724,0.06082252,103500.0,103490.0,0.59962053]
[1763016096872,0.06082252,103500.0,103490.0,0.7476082]
[1763016097381,0.08291252,103500.0,103490.0,0.7476082]
[1763016098548,0.06082252,103500.0,103490.0,0.7476082]
[1763016099379,0.11466252,103500.0,103490.0,0.7476082]
[1763016099589,0.08291252,103500.0,103490.0,0.7476082]
[1763016100413,0.08291252,103500.0,103490.0,0.27458006]
[1763016100617,0.08291252,103500.0,103490.0,0.71859238]
[1763016101478,0.27614923,103500.0,103490.0,0.27458006]
[1763016101683,0.30789923,103500.0,103490.0,0.71859238]
[1763016101976,0.11466252,103500.0,103490.0,0.71859238]
[1763016105154,0.08291252,103500.0,103490.0,0.71859238]
[1763016106423,0.00186252,103500.0,103490.0,0.70859238]
[1763016106632,0.04446252,103500.0,103490.0,0.7476082]
[1763016107452,0.08291252,103500.0,103490.0,0.7476082]
[1763016107669,0.08291252,103500.0,103490.0,0.71859238]
[1763016108649,0.06082252,103500.0,103490.0,0.71859238]
[1763016110108,0.04446252,103500.0,103490.0,0.71859238]
[1763016111064,0.00186252,103500.0,103490.0,0.97401728]
[1763016111302,0.00186252,103500.0,103490.0,0.93013575]
[1763016111518,0.00186252,103500.0,103490.0,1.01506226]
[1763016111716,0.01822252,103500.0,103490.0,0.7930561]
[1763016112927,0.01822252,103500.0,103490.0,1.01506226]
[1763016113138,0.01822252,103500.0,103490.0,0.7930561]
[1763016113589,0.01822252,103500.0,103490.0,0.82207029]
[1763016114388,0.00186252,103500.0,103490.0,0.82207029]
[1763016114768,0.00186252,103500.0,103490.0,1.04407645]
[1763016115167,0.00186252,103500.0,103490.0,0.82207029]
[1763016116589,0.00186252,103500.0,103490.0,0.37805797]
[1763016116816,0.00186252,103500.0,103490.0,1.04407645]
[1763016119984,0.00186252,103500.0,103490.0,0.37805797]
[1763016120186,0.00186252,103500.0,103490.0,1.04407645]
[1763016120831,0.00186252,103500.0,103490.0,0.82207029]
[1763016122043,0.06905252,103500.0,103490.0,0.55664539]
[1763016122293,0.26228923,103500.0,103490.0,0.31919608]
[1763016122497,0.26228923,103500.0,103490.0,0.19525538]
[1763016122722,0.26228923,103500.0,103490.0,0.26469047]
[1763016122932,0.48429539,103500.0,103490.0,0.07143509]
[1763016123360,0.26228923,103500.0,103490.0,0.07143509]
[1763016123570,0.48429539,103500.0,103490.0,0.07143509]
[1763016125856,0.70630155,103500.0,103490.0,0.07143509]
[1763016126059,0.70630155,103500.0,103480.0,0.06943509]
[1763016126060,0.19325538,103490.0,103480.0,0.06943509]
[1763016126263,0.19327406,103480.0,103470.0,0.06952531]
[1763016126472,0.70129638,103480.0,103470.0,0.06952531]
[1763016126928,0.92330254,103480.0,103470.0,0.06952531]
[1763016127311,0.92330254,103480.0,103470.0,9.022e-05]
[1763016127714,0.70129638,103480.0,103470.0,9.022e-05]
[1763016127953,0.92330254,103480.0,103470.0,9.022e-05]
[1763016130176,0.70129638,103480.0,103470.0,9.022e-05]
[1763016130414,0.29984406,103480.0,103470.0,9.022e-05]
[1763016130662,0.30184406,103480.0,103470.0,0.19338296]
[1763016130856,0.30184406,103480.0,103470.0,9.022e-05]
[1763016131399,0.52385022,103480.0,103470.0,0.19338296]
[1763016131796,0.52385022,103480.0,103470.0,9.022e-05]
[1763016132004,0.30184406,103480.0,103470.0,0.19338296]
[1763016132209,0.52385022,103480.0,103470.0,0.19338296]
[1763016132423,0.52385022,103480.0,103470.0,9.022e-05]
[1763016133049,1.06324672,103480.0,103470.0,9.022e-05]
[1763016133263,0.96786254,103480.0,103470.0,9.022e-05]
[1763016135357,2.05379974,103480.0,103470.0,9.022e-05]
[1763016135699,2.16983974,103480.0,103470.0,9.022e-05]
[1763016137844,1.50382126,103480.0,103470.0,9.022e-05]
[1763016138477,1.37778127,103480.0,103470.0,9.022e-05]
[1763016139354,0.71176279,103480.0,103470.0,9.022e-05]
[1763016139490,1.37778127,103480.0,103470.0,9.022e-05]
[1763016140130,1.33522127,103480.0,103470.0,9.022e-05]
[1763016140357,1.37778127,103480.0,103470.0,9.022e-05]
[1763016140565,1.47620162,103480.0,103470.0,9.022e-05]
[1763016141100,0.71176279,103480.0,103470.0,9.022e-05]
[1763016141349,1.11321511,103480.0,103470.0,9.022e-05]
[1763016141531,1.15577511,103480.0,103470.0,9.022e-05]
[1763016142972,1.37778127,103480.0,103470.0,9.022e-05]
[1763016143172,1.11321511,103480.0,103470.0,9.022e-05]
[1763016143374,1.15577511,103480.0,103470.0,9.022e-05]
[1763016144635,0.58228406,103480.0,103470.0,9.022e-05]
[1763016144844,1.06885638,103480.0,103470.0,9.022e-05]
[1763016145253,0.62484406,103480.0,103470.0,9.022e-05]
[1763016145459,1.06885638,103480.0,103470.0,9.022e-05]
[1763016146005,0.70329638,103480.0,103470.0,9.022e-05]
[1763016146211,0.74585638,103480.0,103470.0,9.022e-05]
[1763016146780,0.70329638,103480.0,103470.0,9.022e-05]
[1763016146983,0.74585638,103480.0,103470.0,9.022e-05]
[1763016148438,0.30184406,103480.0,103470.0,9.022e-05]
[1763016148621,0.74585638,103480.0,103470.0,9.022e-05]
[1763016153386,0.70329638,103480.0,103470.0,9.022e-05]
[1763016153591,0.74585638,103480.0,103470.0,9.022e-05]
[1763016153817,0.70329638,103480.0,103470.0,9.022e-05]
[1763016154228,0.74585638,103480.0,103470.0,9.022e-05]
[1763016154453,0.70329638,103480.0,103470.0,9.022e-05]
[1763016154666,0.74585638,103480.0,103470.0,9.022e-05]
[1763016156231,0.06601,103480.0,103470.0,0.63739528]
[1763016156438,0.30184406,103480.0,103470.0,0.22209638]
[1763016157064,0.30184406,103480.0,103470.0,0.41538912]
[1763016157813,0.30184406,103480.0,103470.0,0.19338296]
[1763016158031,0.30184406,103480.0,103470.0,0.41538912]
[1763016158460,0.30184406,103480.0,103470.0,0.19338296]
[1763016158676,0.30184406,103480.0,103470.0,0.41538912]
[1763016159120,0.30184406,103480.0,103470.0,0.19338296]
[1763016160445,0.30184406,103480.0,103470.0,9.022e-05]
[1763016160688,0.59802458,103480.0,103470.0,9.022e-05]
[1763016161986,0.30184406,103480.0,103470.0,9.022e-05]
[1763016162203,0.59802458,103480.0,103470.0,9.022e-05]
[1763016162424,0.30184406,103480.0,103470.0,9.022e-05]
[1763016162645,0.59802458,103480.0,103470.0,9.022e-05]
[1763016162870,0.30184406,103480.0,103470.0,9.022e-05]
[1763016164475,0.30184406,103480.0,103470.0,0.19338296]
[1763016164727,0.03671,103480.0,103470.0,0.49956348]
[1763016164919,0.07927,103480.0,103470.0,0.49956348]
[1763016165619,0.10863,103480.0,103470.0,0.49956348]